fUST/lending_fUST_20250627
["ID","MTS","AMOUNT","RATE_DAILY","PERIOD"]
[368050854,1751008239356,-460.0,0.00019452,2]
[368050855,1751008239365,-382.27558329,0.00019452,2]
[368050856,1751008239374,-460.0,0.00019452,2]
[368050857,1751008239384,-460.0,0.00019452,2]
[368050858,1751008239394,-460.0,0.00019452,2]
[368050859,1751008239406,-460.0,0.00019452,2]
[368050860,1751008239416,-440.0,0.00019452,2]
[368050861,1751008239425,-621.96,0.00019452,2]
[368050862,1751008239434,-460.0,0.00019452,2]
[368050863,1751008239444,-460.0,0.00019452,2]
[368050864,1751008239453,-460.0,0.00019452,2]
[368050865,1751008239462,-460.0,0.00019452,2]
[368050866,1751008239471,-236.65,0.00019452,2]
[368050867,1751008239480,-558.91,0.00019452,2]
[368050868,1751008239490,-521.58496623,0.00019452,2]
[368050869,1751008239499,-460.0,0.00019452,2]
[368050870,1751008239508,-460.0,0.00019452,2]
[368050871,1751008239518,-460.0,0.00019452,2]
[368050872,1751008239527,-460.0,0.00019452,2]
[368050873,1751008239538,-460.0,0.00019452,2]
[368050874,1751008239547,-460.0,0.00019452,2]
[368050875,1751008239557,-460.0,0.00019452,2]
[368050876,1751008239567,-460.0,0.00019452,2]
[368050877,1751008239576,-460.0,0.00019452,2]
[368050878,1751008239585,-460.0,0.00019452,2]
[368050879,1751008239595,-460.0,0.00019452,2]
[368050880,1751008239605,-460.0,0.00019452,2]
[368050881,1751008239615,-460.0,0.00019452,2]
[368050882,1751008239626,-460.0,0.00019452,2]
[368050883,1751008239636,-443.76641053,0.00019452,2]
[368050884,1751008239645,-460.0,0.00019452,2]
[368050885,1751008239655,-460.0,0.00019452,2]
[368050886,1751008239665,-460.0,0.00019452,2]
[368050887,1751008239674,-460.0,0.00019452,2]
[368050888,1751008239683,-460.0,0.00019452,2]
[368050889,1751008239692,-460.0,0.00019452,2]
[368050890,1751008239702,-461.41,0.00019452,2]
[368050891,1751008239711,-460.0,0.00019452,2]
[368050892,1751008239721,-460.0,0.00019452,2]
[368050893,1751008239731,-460.0,0.00019452,2]
[368050894,1751008239741,-460.0,0.00019452,2]
[368050895,1751008239751,-460.0,0.00019452,2]
[368050896,1751008239761,-455.0,0.00019452,2]
[368050897,1751008239772,-460.0,0.00019452,2]
[368050898,1751008239781,-460.0,0.00019452,2]
[368050899,1751008239790,-460.0,0.00019452,2]
[368050900,1751008239799,-460.0,0.00019452,2]
[368050901,1751008239809,-159.96,0.00019452,2]
[368050902,1751008239819,-460.0,0.00019452,2]
[368050903,1751008239828,-460.0,0.00019452,2]
[368050904,1751008239838,-460.0,0.00019452,2]
[368050905,1751008239848,-550.18,0.00019452,2]
[368050906,1751008239857,-460.0,0.00019452,2]
[368050907,1751008239866,-503.64734181,0.00019452,2]
[368050908,1751008239875,-460.0,0.00019452,2]
[368050909,1751008239885,-690.54,0.00019452,2]
[368050910,1751008239895,-460.0,0.00019452,2]
[368050911,1751008239905,-460.0,0.00019452,2]
[368050912,1751008239915,-460.0,0.00019452,2]
[368050913,1751008239924,-460.0,0.00019452,2]
[368050914,1751008239934,-460.0,0.00019452,2]
[368050915,1751008239943,-460.0,0.00019452,2]
[368050916,1751008239953,-460.0,0.00019452,2]
[368050917,1751008239965,-460.0,0.00019452,2]
[368050918,1751008239975,-460.0,0.00019452,2]
[368050919,1751008239984,-460.0,0.00019452,2]
[368050920,1751008239993,-460.0,0.00019452,2]
[368050921,1751008240006,-460.0,0.00019452,2]
[368050922,1751008240015,-460.0,0.00019452,2]
[368050923,1751008240024,-460.0,0.00019452,2]
[368050924,1751008240036,-460.0,0.00019452,2]
[368050925,1751008240045,-1186.93,0.00019452,2]
[368050926,1751008240055,-460.0,0.00019452,2]
[368050928,1751008240064,-460.0,0.00019452,2]
[368050930,1751008240074,-537.99345907,0.00019452,2]
[368050932,1751008240083,-409.26851164,0.00019452,2]
[368050933,1751008240093,-460.0,0.00019452,2]
[368050934,1751008240102,-509.49,0.00019452,2]
[368050935,1751008240112,-460.0,0.00019452,2]
[368050936,1751008240121,-520.35,0.00019452,2]
[368050937,1751008240130,-389.5276768,0.00019452,2]
[368050938,1751008240140,-460.0,0.00019452,2]
[368050939,1751008240151,-1034.45,0.00019452,2]
[368050940,1751008240161,-460.0,0.00019452,2]
[368050941,1751008240170,-460.0,0.00019452,2]
[368050942,1751008240180,-460.0,0.00019452,2]
[368050943,1751008240189,-640.85,0.00019452,2]
[368050944,1751008240198,-460.0,0.00019452,2]
[368050945,1751008240208,-241.83036512,0.00019452,2]
[368050946,1751008240217,-2803.5,0.00019452,2]
[368050947,1751008240227,-460.0,0.00019452,2]
[368050948,1751008240236,-460.0,0.00019452,2]
[368050950,1751008240246,-460.0,0.00019452,2]
[368050952,1751008240256,-1923.74,0.00019452,2]
[368050954,1751008240266,-460.0,0.00019452,2]
[368050956,1751008240275,-460.0,0.00019452,2]
[368050958,1751008240285,-460.0,0.00019452,2]
[368050960,1751008240294,-460.0,0.00019452,2]
[368050962,1751008240304,-460.0,0.00019452,2]
[368050964,1751008240313,-2173.5,0.00019452,2]
[368050966,1751008240322,-460.0,0.00019452,2]
[368050968,1751008240332,-614.84,0.00019452,2]
[368050970,1751008240342,-460.0,0.00019452,2]
[368050972,1751008240350,-460.0,0.00019452,2]
[368050974,1751008240360,-460.0,0.00019452,2]
[368050976,1751008240369,-933.66,0.00019452,2]
[368050978,1751008240378,-460.0,0.00019452,2]
[368050980,1751008240388,-634.44,0.00019452,2]
[368050982,1751008240397,-462.88936565,0.00019452,2]
[368050984,1751008240408,-1067.63,0.00019452,2]
[368050986,1751008240417,-512.53,0.00019452,2]
[368050988,1751008240427,-459.35411922,0.00019452,2]
[368050990,1751008240436,-460.0,0.00019452,2]
[368050992,1751008240445,-1832.69,0.00019452,2]
[368050994,1751008240455,-707.24,0.00019452,2]
[368050996,1751008240464,-460.0,0.00019452,2]
[368050998,1751008240473,-460.0,0.00019452,2]
[368050999,1751008240482,-640.59,0.00019452,2]
[368051001,1751008240491,-226.2393405,0.00019452,2]
[368051003,1751008240500,-460.0,0.00019452,2]
[368051005,1751008240510,-512.38,0.00019452,2]
[368051007,1751008240519,-460.0,0.00019452,2]
[368051009,1751008240528,-460.0,0.00019452,2]
[368051011,1751008240538,-460.0,0.00019452,2]
[368051013,1751008240547,-1966.54,0.00019452,2]
[368051015,1751008240557,-4198.63,0.00019452,2]
[368051017,1751008240566,-480.64822948,0.00019452,2]
[368051019,1751008240575,-2293.22,0.00019452,2]
[368051021,1751008240584,-510.95,0.00019452,2]
[368051023,1751008240594,-460.0,0.00019452,2]
[368051025,1751008240603,-460.0,0.00019452,2]
[368051027,1751008240612,-684.25,0.00019452,2]
[368051029,1751008240621,-460.0,0.00019452,2]
[368051031,1751008240631,-460.0,0.00019452,2]
[368051033,1751008240640,-596.37,0.00019452,2]
[368051035,1751008240650,-1552.38,0.00019452,2]
[368051037,1751008240659,-1125.61,0.00019452,2]
[368051039,1751008240668,-460.0,0.00019452,2]
[368051041,1751008240678,-460.0,0.00019452,2]
[368051043,1751008240687,-485.7,0.00019452,2]
[368051045,1751008240696,-438.56714566,0.00019452,2]
[368051047,1751008240705,-460.0,0.00019452,2]
[368051049,1751008240715,-1817.3,0.00019452,2]
[368051051,1751008240724,-587.48,0.00019452,2]
[368051053,1751008240733,-460.0,0.00019452,2]
[368051055,1751008240742,-954.43,0.00019452,2]
[368051057,1751008240751,-460.0,0.00019452,2]
[368051059,1751008240761,-711.74,0.00019452,2]
[368051061,1751008240771,-460.0,0.00019452,2]
[368051063,1751008240780,-2213.11,0.00019452,2]
[368051065,1751008240789,-460.0,0.00019452,2]
[368051067,1751008240798,-1589.97,0.00019452,2]
[368051069,1751008240807,-501.04519411,0.00019659,2]
[368051071,1751008240816,-500.77727154,0.00019659,2]
[368051073,1751008240828,-617.83311831,0.00019659,2]
[368051075,1751008240838,-500.0,0.00019659,2]
[368051077,1751008240847,-500.0,0.00019659,2]
[368051079,1751008240856,-500.0,0.00019659,2]
[368051081,1751008240865,-160.46873652,0.00019659,2]
[368051083,1751008240875,-500.0,0.00019659,2]
[368051085,1751008240885,-500.0,0.00019659,2]
[368051087,1751008240895,-500.0,0.00019659,2]
[368051089,1751008240905,-500.85840275,0.00019671,2]
[368051091,1751008240915,-453.69017575,0.00019677,2]
[368051093,1751008240924,-500.0,0.00019677,2]
[368051095,1751008240934,-500.51236361,0.000197,2]
[368051097,1751008240943,-500.0,0.000197,2]
[368051099,1751008240953,-460.0,0.00019726,2]
[368051101,1751008240966,-460.0,0.00019726,2]
[368051103,1751008240976,-460.0,0.00019726,2]
[368051105,1751008240986,-460.0,0.00019726,2]
[368051107,1751008240995,-460.0,0.00019726,2]
[368051109,1751008241008,-460.0,0.00019726,2]
[368051111,1751008241017,-460.0,0.00019726,2]
[368051113,1751008241027,-460.0,0.00019726,2]
[368051115,1751008241036,-460.0,0.00019726,2]
[368051117,1751008241046,-471.85286502,0.00019726,2]
[368051119,1751008241055,-460.0,0.00019726,2]
[368051121,1751008241065,-460.0,0.00019726,2]
[368051123,1751008241074,-400.0,0.00019726,2]
[368051125,1751008241083,-460.0,0.00019726,2]
[368051127,1751008241093,-460.0,0.00019726,2]
[368051129,1751008241102,-460.0,0.00019726,2]
[368051131,1751008241111,-460.0,0.00019726,2]
[368051133,1751008241121,-621.96,0.00019726,2]
[368051135,1751008241130,-460.0,0.00019726,2]
[368051137,1751008241140,-460.0,0.00019726,2]
[368051139,1751008241149,-460.0,0.00019726,2]
[368051141,1751008241158,-558.91,0.00019726,2]
[368051143,1751008241167,-403.51486158,0.00019726,2]
[368051145,1751008241176,-460.0,0.00019726,2]
[368051147,1751008241186,-460.0,0.00019726,2]
[368051149,1751008241194,-460.0,0.00019726,2]
[368051154,1751008241235,-460.0,0.00019726,2]
[368051156,1751008241244,-460.0,0.00019726,2]
[368051158,1751008241253,-460.0,0.00019726,2]
[368051160,1751008241263,-460.0,0.00019726,2]
[368051162,1751008241271,-460.0,0.00019726,2]
[368051164,1751008241281,-460.0,0.00019726,2]
[368051166,1751008241290,-460.0,0.00019726,2]
[368051168,1751008241299,-460.0,0.00019726,2]
[368051170,1751008241308,-460.0,0.00019726,2]
[368051172,1751008241317,-460.0,0.00019726,2]
[368051174,1751008241326,-460.0,0.00019726,2]
[368051176,1751008241335,-460.0,0.00019726,2]
[368051178,1751008241345,-356.64,0.00019726,2]
[368051180,1751008241354,-461.41,0.00019726,2]
[368051182,1751008241363,-460.0,0.00019726,2]
[368051184,1751008241372,-460.0,0.00019726,2]
[368051186,1751008241381,-483.05188416,0.00019726,2]
[368051188,1751008241390,-460.0,0.00019726,2]
[368051190,1751008241400,-460.0,0.00019726,2]
[368051192,1751008241410,-440.47076089,0.00019726,2]
[368051194,1751008241419,-460.0,0.00019726,2]
[368051196,1751008241428,-460.0,0.00019726,2]
[368051198,1751008241438,-460.0,0.00019726,2]
[368051200,1751008241447,-460.0,0.00019726,2]
[368051202,1751008241456,-460.0,0.00019726,2]
[368051204,1751008241466,-460.0,0.00019726,2]
[368051206,1751008241474,-690.54,0.00019726,2]
[368051207,1751008241483,-460.0,0.00019726,2]
[368051209,1751008241492,-460.0,0.00019726,2]
[368051211,1751008241501,-460.0,0.00019726,2]
[368051213,1751008241511,-160.65994211,0.00019726,2]
[368051215,1751008241520,-460.0,0.00019726,2]
[368051217,1751008241529,-460.0,0.00019726,2]
[368051219,1751008241538,-460.0,0.00019726,2]
[368051221,1751008241547,-460.0,0.00019726,2]
[368051223,1751008241555,-460.0,0.00019726,2]
[368051225,1751008241565,-460.0,0.00019726,2]
[368051227,1751008241574,-1186.93,0.00019726,2]
[368051229,1751008241583,-460.0,0.00019726,2]
[368051231,1751008241592,-460.0,0.00019726,2]
[368051233,1751008241601,-460.0,0.00019726,2]
[368051235,1751008241610,-509.49,0.00019726,2]
[368051237,1751008241619,-460.0,0.00019726,2]
[368051239,1751008241628,-520.35,0.00019726,2]
[368051241,1751008241637,-1034.45,0.00019726,2]
[368051243,1751008241647,-460.0,0.00019726,2]
[368051245,1751008241658,-460.0,0.00019726,2]
[368051247,1751008241667,-460.0,0.00019726,2]
[368051249,1751008241676,-640.85,0.00019726,2]
[368051251,1751008241685,-460.0,0.00019726,2]
[368051253,1751008241694,-460.0,0.00019726,2]
[368051255,1751008241704,-2803.5,0.00019726,2]
[368051257,1751008241713,-460.0,0.00019726,2]
[368051259,1751008241722,-460.0,0.00019726,2]
[368051261,1751008241731,-1923.74,0.00019726,2]
[368051263,1751008241740,-460.0,0.00019726,2]
[368051265,1751008241750,-151.5931537,0.00019726,2]
[368051266,1751008241759,-472.96471581,0.00019726,2]
[368051268,1751008241768,-460.0,0.00019726,2]
[368051270,1751008241780,-2173.5,0.00019726,2]
[368051272,1751008241789,-614.84,0.00019726,2]
[368051274,1751008241798,-460.0,0.00019726,2]
[368051276,1751008241807,-933.66,0.00019726,2]
[368051278,1751008241816,-460.0,0.00019726,2]
[368051280,1751008241825,-634.44,0.00019726,2]
[368051282,1751008241835,-1067.63,0.00019726,2]
[368051284,1751008241844,-512.53,0.00019726,2]
[368051286,1751008241854,-1832.69,0.00019726,2]
[368051288,1751008241863,-707.24,0.00019726,2]
[368051290,1751008241872,-460.0,0.00019726,2]
[368051292,1751008241881,-460.0,0.00019726,2]
[368051294,1751008241890,-640.59,0.00019726,2]
[368051296,1751008241898,-460.0,0.00019726,2]
[368051298,1751008241909,-512.38,0.00019726,2]
[368051300,1751008241918,-460.0,0.00019726,2]
[368051302,1751008241927,-460.0,0.00019726,2]
[368051304,1751008241936,-1966.54,0.00019726,2]
[368051306,1751008241945,-4198.63,0.00019726,2]
[368051308,1751008241954,-2293.22,0.00019726,2]
[368051310,1751008241968,-510.95,0.00019726,2]
[368051312,1751008241978,-460.0,0.00019726,2]
[368051314,1751008241987,-460.0,0.00019726,2]
[368051316,1751008241996,-684.25,0.00019726,2]
[368051318,1751008242005,-460.0,0.00019726,2]
[368051320,1751008242014,-460.0,0.00019726,2]
[368051322,1751008242024,-1552.38,0.00019726,2]
[368051324,1751008242033,-460.0,0.00019726,2]
[368051326,1751008242042,-596.37,0.00019726,2]
[368051328,1751008242051,-1125.61,0.00019726,2]
[368051330,1751008242059,-460.0,0.00019726,2]
[368051332,1751008242068,-485.7,0.00019726,2]
[368051334,1751008242077,-460.0,0.00019726,2]
[368051336,1751008242086,-1817.3,0.00019726,2]
[368051338,1751008242095,-587.48,0.00019726,2]
[368051340,1751008242104,-460.0,0.00019726,2]
[368051342,1751008242113,-954.43,0.00019726,2]
[368051344,1751008242122,-205.38,0.00019726,2]
[368051346,1751008242132,-711.74,0.00019726,2]
[368051348,1751008242141,-460.0,0.00019726,2]
[368051350,1751008242151,-2213.11,0.00019726,2]
[368051352,1751008242160,-460.0,0.00019726,2]
[368051354,1751008242168,-500.0,0.00019729,2]
[368051356,1751008242177,-500.0,0.00019745,2]
[368051358,1751008242186,-500.81995879,0.00019777,2]
[368051360,1751008242195,-160.0,0.000198,3]
[368051362,1751008242203,-160.0,0.000198,3]
[368051363,1751008242213,-500.0,0.00019886,2]
[368051366,1751008242222,-8459.99945617,0.000199,2]
[368051367,1751008242232,-388.72510194,0.00019989,2]
[368051369,1751008242241,-500.0,0.00019999,2]
[368051371,1751008242250,-500.0,0.00019999,2]
[368051373,1751008242259,-500.0,0.00019999,2]
[368051375,1751008242269,-365.07104372,0.00019999,2]
[368051378,1751008242278,-500.0,0.00019999,2]
[368051379,1751008242287,-500.0,0.00019999,2]
[368051381,1751008242296,-500.0,0.00019999,2]
[368051383,1751008242305,-477.2214578,0.00019999,2]
[368051386,1751008242315,-500.0,0.00019999,2]
[368051388,1751008242324,-500.0,0.00019999,2]
[368051390,1751008242333,-500.0,0.00019999,2]
[368051392,1751008242343,-500.0,0.00019999,2]
[368051394,1751008242352,-460.0,0.0002,2]
[368051396,1751008242361,-398.23,0.0002,2]
[368051398,1751008242371,-460.0,0.0002,2]
[368051400,1751008242380,-558.51752161,0.0002,2]
[368051402,1751008242389,-460.0,0.0002,2]
[368051404,1751008242399,-460.0,0.0002,2]
[368051406,1751008242408,-550.4,0.0002,2]
[368051407,1751008242417,-460.0,0.0002,2]
[368051410,1751008242427,-460.0,0.0002,2]
[368051412,1751008242436,-460.0,0.0002,2]
[368051414,1751008242445,-621.96,0.0002,2]
[368051416,1751008242455,-460.0,0.0002,2]
[368051418,1751008242464,-460.0,0.0002,2]
[368051420,1751008242474,-558.91,0.0002,2]
[368051422,1751008242483,-468.86,0.0002,2]
[368051424,1751008242492,-460.0,0.0002,2]
[368051425,1751008242501,-460.0,0.0002,2]
[368051428,1751008242511,-460.0,0.0002,2]
[368051430,1751008242520,-460.0,0.0002,2]
[368051431,1751008242529,-460.0,0.0002,2]
[368051434,1751008242539,-460.0,0.0002,2]
[368051436,1751008242548,-460.0,0.0002,2]
[368051437,1751008242558,-217.10438226,0.0002,2]
[368051440,1751008242567,-460.0,0.0002,2]
[368051442,1751008242577,-461.41,0.0002,2]
[368051444,1751008242586,-460.0,0.0002,2]
[368051445,1751008242595,-460.0,0.0002,2]
[368051447,1751008242605,-460.0,0.0002,2]
[368051449,1751008242614,-376.07853164,0.0002,2]
[368051451,1751008242623,-460.0,0.0002,2]
[368051453,1751008242632,-460.0,0.0002,2]
[368051455,1751008242642,-690.54,0.0002,2]
[368051458,1751008242653,-253.93845296,0.0002,2]
[368051460,1751008242663,-460.0,0.0002,2]
[368051463,1751008242673,-460.0,0.0002,2]
[368051466,1751008242683,-356.3202412,0.0002,2]
[368051470,1751008242692,-1186.93,0.0002,2]
[368051474,1751008242701,-460.0,0.0002,2]
[368051477,1751008242711,-460.0,0.0002,2]
[368051480,1751008242720,-509.49,0.0002,2]
[368051482,1751008242730,-460.0,0.0002,2]
[368051484,1751008242739,-520.35,0.0002,2]
[368051486,1751008242749,-1034.45,0.0002,2]
[368051488,1751008242759,-460.0,0.0002,2]
[368051490,1751008242768,-403.86096328,0.0002,2]
[368051492,1751008242778,-460.0,0.0002,2]
[368051494,1751008242788,-640.85,0.0002,2]
[368051496,1751008242797,-460.0,0.0002,2]
[368051498,1751008242806,-2803.5,0.0002,2]
[368051500,1751008242815,-460.0,0.0002,2]
[368051502,1751008242825,-184.72,0.0002,2]
[368051504,1751008242834,-460.0,0.0002,2]
[368051506,1751008242843,-1923.74,0.0002,2]
[368051508,1751008242853,-460.0,0.0002,2]
[368051510,1751008242862,-460.0,0.0002,2]
[368051512,1751008242871,-2173.5,0.0002,2]
[368051514,1751008242881,-614.84,0.0002,2]
[368051515,1751008242890,-460.0,0.0002,2]
[368051516,1751008242900,-933.66,0.0002,2]
[368051517,1751008242909,-460.0,0.0002,2]
[368051518,1751008242919,-634.44,0.0002,2]
[368051519,1751008242928,-1067.63,0.0002,2]
[368051520,1751008242938,-512.53,0.0002,2]
[368051521,1751008242947,-1832.69,0.0002,2]
[368051522,1751008242959,-707.24,0.0002,2]
[368051523,1751008242969,-460.0,0.0002,2]
[368051524,1751008242978,-640.59,0.0002,2]
[368051525,1751008242987,-460.0,0.0002,2]
[368051526,1751008242997,-512.38,0.0002,2]
[368051527,1751008243007,-460.0,0.0002,2]
[368051528,1751008243016,-460.0,0.0002,2]
[368051529,1751008243026,-1966.54,0.0002,2]
[368051530,1751008243037,-4198.63,0.0002,2]
[368051531,1751008243046,-2293.22,0.0002,2]
[368051532,1751008243056,-510.95,0.0002,2]
[368051533,1751008243066,-460.0,0.0002,2]
[368051534,1751008243076,-460.0,0.0002,2]
[368051536,1751008243085,-684.25,0.0002,2]
[368051538,1751008243095,-460.0,0.0002,2]
[368051540,1751008243105,-460.0,0.0002,2]
[368051542,1751008243114,-1552.38,0.0002,2]
[368051544,1751008243124,-460.0,0.0002,2]
[368051546,1751008243133,-596.37,0.0002,2]
[368051548,1751008243143,-1125.61,0.0002,2]
[368051550,1751008243153,-485.7,0.0002,2]
[368051552,1751008243162,-460.0,0.0002,2]
[368051554,1751008243172,-1817.3,0.0002,2]
[368051556,1751008243181,-587.48,0.0002,2]
[368051558,1751008243191,-460.0,0.0002,2]
[368051560,1751008243200,-954.43,0.0002,2]
[368051564,1751008243210,-711.74,0.0002,2]
[368051568,1751008243219,-460.0,0.0002,2]
[368051570,1751008243229,-2213.11,0.0002,2]
[368051572,1751008243239,-404.86,0.0002,2]
[368051574,1751008243248,-500.0,0.00020067,2]
[368051577,1751008243258,-8459.99945607,0.00020107,2]
[368051581,1751008243268,-1000.0,0.00020207,2]
[368051584,1751008243277,-895.67986745,0.00020207,2]
[368051587,1751008243287,-564.0,0.0002021,2]
[368051590,1751008243296,-500.59761066,0.00020248,2]
[368051592,1751008243306,-460.0,0.00020273,2]
[368051595,1751008243315,-580.0,0.00020273,2]
[368051598,1751008243325,-460.0,0.00020273,2]
[368051601,1751008243334,-460.0,0.00020273,2]
[368051604,1751008243344,-460.0,0.00020273,2]
[368051607,1751008243353,-621.96,0.00020273,2]
[368051610,1751008243363,-460.0,0.00020273,2]
[368051613,1751008243374,-460.0,0.00020273,2]
[368051615,1751008243384,-558.91,0.00020273,2]
[368051617,1751008243393,-460.0,0.00020273,2]
[368051619,1751008243403,-460.0,0.00020273,2]
[368051621,1751008243412,-460.0,0.00020273,2]
[368051623,1751008243422,-460.0,0.00020273,2]
[368051625,1751008243431,-460.0,0.00020273,2]
[368051627,1751008243440,-461.41,0.00020273,2]
[368051629,1751008243450,-460.0,0.00020273,2]
[368051631,1751008243459,-195.93417325,0.00020273,2]
[368051633,1751008243469,-449.42579547,0.00020273,2]
[368051635,1751008243479,-460.0,0.00020273,2]
[368051637,1751008243489,-460.0,0.00020273,2]
[368051639,1751008243498,-690.54,0.00020273,2]
[368051641,1751008243507,-460.0,0.00020273,2]
[368051643,1751008243517,-460.0,0.00020273,2]
[368051645,1751008243527,-1186.93,0.00020273,2]
[368051648,1751008243537,-460.0,0.00020273,2]
[368051650,1751008243546,-509.49,0.00020273,2]
[368051651,1751008243555,-460.0,0.00020273,2]
[368051653,1751008243565,-520.35,0.00020273,2]
[368051656,1751008243575,-1034.45,0.00020273,2]
[368051658,1751008243584,-460.0,0.00020273,2]
[368051660,1751008243594,-460.0,0.00020273,2]
[368051662,1751008243604,-640.85,0.00020273,2]
[368051664,1751008243613,-460.0,0.00020273,2]
[368051666,1751008243622,-2803.5,0.00020273,2]
[368051667,1751008243632,-460.0,0.00020273,2]
[368051670,1751008243641,-460.0,0.00020273,2]
[368051672,1751008243652,-1923.74,0.00020273,2]
[368051674,1751008243661,-460.0,0.00020273,2]
[368051676,1751008243671,-460.0,0.00020273,2]
[368051678,1751008243680,-2173.5,0.00020273,2]
[368051680,1751008243690,-614.84,0.00020273,2]
[368051682,1751008243699,-460.0,0.00020273,2]
[368051684,1751008243709,-933.66,0.00020273,2]
[368051686,1751008243718,-460.0,0.00020273,2]
[368051688,1751008243728,-634.44,0.00020273,2]
[368051690,1751008243738,-1067.63,0.00020273,2]
[368051692,1751008243748,-512.53,0.00020273,2]
[368051694,1751008243757,-1832.69,0.00020273,2]
[368051696,1751008243767,-707.24,0.00020273,2]
[368051698,1751008243776,-460.0,0.00020273,2]
[368051700,1751008243787,-640.59,0.00020273,2]
[368051702,1751008243796,-460.0,0.00020273,2]
[368051704,1751008243806,-512.38,0.00020273,2]
[368051706,1751008243815,-460.0,0.00020273,2]
[368051708,1751008243825,-460.0,0.00020273,2]
[368051710,1751008243834,-1966.54,0.00020273,2]
[368051712,1751008243843,-4198.63,0.00020273,2]
[368051714,1751008243854,-2293.22,0.00020273,2]
[368051716,1751008243863,-510.95,0.00020273,2]
[368051718,1751008243873,-460.0,0.00020273,2]
[368051720,1751008243883,-460.0,0.00020273,2]
[368051722,1751008243892,-684.25,0.00020273,2]
[368051724,1751008243902,-460.0,0.00020273,2]
[368051726,1751008243911,-1552.38,0.00020273,2]
[368051728,1751008243921,-460.0,0.00020273,2]
[368051730,1751008243931,-596.37,0.00020273,2]
[368051732,1751008243941,-1125.61,0.00020273,2]
[368051734,1751008243950,-485.7,0.00020273,2]
[368051736,1751008243963,-1817.3,0.00020273,2]
[368051738,1751008243973,-460.0,0.00020273,2]
[368051740,1751008243983,-954.43,0.00020273,2]
[368051742,1751008243994,-711.74,0.00020273,2]
[368051744,1751008244003,-573.12,0.00020273,2]
[368051746,1751008244013,-2213.11,0.00020273,2]
[368051748,1751008244023,-1000.0,0.00020277,2]
[368051750,1751008244032,-160.0,0.00020297,2]
[368051752,1751008244042,-230.26210603,0.00020297,2]
[368051754,1751008244054,-160.0,0.00020297,2]
[368051756,1751008244063,-213.75309343,0.00020297,2]
[368051758,1751008244073,-847.04181546,0.00020297,2]
[368051760,1751008244083,-214.91804724,0.00020297,2]
[368051763,1751008244093,-836.98798914,0.00020297,2]
[368051764,1751008244103,-12562.41216491,0.00020297,2]
[368051767,1751008244112,-8459.99945607,0.00020314,3]
[368051769,1751008244122,-1000.0,0.00020434,2]
[368051771,1751008244131,-213.75309343,0.00020521,3]